fUST/lending_fUST_20260702
["ID","MTS","AMOUNT","RATE_DAILY","PERIOD"]
[426899666,1782996639000,-500.0,0.00023764,2]
[426899619,1782996639000,-500.0,0.00023749,2]
[426899605,1782996639000,-500.0,0.00023749,2]
[426899547,1782996639000,-500.0,0.00023648,2]
[426899552,1782996639000,-2864.97069853,0.00023658,2]
[426899554,1782996639000,-2864.97069853,0.00023663,2]
[426899556,1782996639000,-155.18671709,0.00023702,2]
[426899558,1782996639000,-13461.83485982,0.0002374,2]
[426899560,1782996639000,-194.72,0.00023744,2]
[426899562,1782996639000,-500.0,0.00023744,2]
[426899564,1782996639000,-1000.0,0.00023749,2]
[426899568,1782996639000,-1000.0,0.00023749,2]
[426899566,1782996639000,-1000.0,0.00023749,2]
[426899570,1782996639000,-1000.0,0.00023749,2]
[426899574,1782996639000,-1000.0,0.00023749,2]
[426899572,1782996639000,-1000.0,0.00023749,2]
[426899536,1782996639000,-500.0,0.00023648,2]
[426899586,1782996639000,-1000.0,0.00023749,2]
[426899611,1782996639000,-500.0,0.00023749,2]
[426899613,1782996639000,-500.0,0.00023749,2]
[426899600,1782996639000,-1000.0,0.00023749,2]
[426899594,1782996639000,-1000.0,0.00023749,2]
[426899576,1782996639000,-1000.0,0.00023749,2]
[426899592,1782996639000,-1000.0,0.00023749,2]
[426899590,1782996639000,-1000.0,0.00023749,2]
[426899595,1782996639000,-1000.0,0.00023749,2]
[426899584,1782996639000,-1000.0,0.00023749,2]
[426899578,1782996639000,-1000.0,0.00023749,2]
[426899582,1782996639000,-1000.0,0.00023749,2]
[426899580,1782996639000,-1000.0,0.00023749,2]
[426899588,1782996639000,-1000.0,0.00023749,2]
[426899598,1782996639000,-1000.0,0.00023749,2]
[426899752,1782996640000,-174.31489967,0.000248,2]
[426899740,1782996640000,-990.03069165,0.000248,2]
[426899735,1782996640000,-657.87,0.00024799,2]
[426899750,1782996640000,-235.04086664,0.000248,2]
[426899734,1782996640000,-487.0,0.00024799,2]
[426899742,1782996640000,-1546.92295571,0.000248,2]
[426899730,1782996640000,-155.18671709,0.0002425,2]
[426899732,1782996640000,-155.18671709,0.00024798,2]
[426899746,1782996640000,-210.52631213,0.000248,2]
[426899748,1782996640000,-2225.34148716,0.000248,2]
[426899723,1782996640000,-265.30798444,0.00023764,2]
[426899744,1782996640000,-1224.39185194,0.000248,2]
[426899751,1782996640000,-220.36865542,0.000248,2]
[426899762,1782996640000,-79381.49695289,0.00025,2]
[426899754,1782996640000,-2217.0,0.0002487,2]
[426899759,1782996640000,-236.0,0.00024925,2]
[426899761,1782996640000,-6348.1600557,0.00024932,2]
[426899757,1782996640000,-446.0,0.0002487,2]
[426899758,1782996640000,-747.0,0.0002487,2]
[426899764,1782996640000,-3000.0,0.00025,2]
[426899756,1782996640000,-1423.40193521,0.0002487,2]
[426899755,1782996640000,-422.59806479,0.0002487,2]
[426899766,1782996640000,-10000.0,0.00025,2]
[426899776,1782996640000,-3000.0,0.0002508,2]
[426899777,1782996640000,-3000.0,0.0002509,2]
[426899721,1782996640000,-280.81026718,0.00023764,2]
[426899767,1782996640000,-1000.0,0.00025,2]
[426899753,1782996640000,-378.56841447,0.000248,2]
[426899728,1782996640000,-435.96502342,0.00024023,2]
[426899697,1782996640000,-151.5,0.00023764,2]
[426899725,1782996640000,-250.90147616,0.00023784,2]
[426899768,1782996640000,-3000.0,0.0002501,2]
[426899676,1782996640000,-500.0,0.00023764,2]
[426899678,1782996640000,-500.0,0.00023764,2]
[426899679,1782996640000,-500.0,0.00023764,2]
[426899670,1782996640000,-516.65958528,0.00023764,2]
[426899674,1782996640000,-500.0,0.00023764,2]
[426899672,1782996640000,-500.0,0.00023764,2]
[426899683,1782996640000,-500.0,0.00023764,2]
[426899686,1782996640000,-500.0,0.00023764,2]
[426899681,1782996640000,-500.0,0.00023764,2]
[426899687,1782996640000,-500.0,0.00023764,2]
[426899689,1782996640000,-500.0,0.00023764,2]
[426899693,1782996640000,-500.0,0.00023764,2]
[426899695,1782996640000,-500.0,0.00023764,2]
[426899691,1782996640000,-541.7515072,0.00023764,2]
[426899699,1782996640000,-500.0,0.00023764,2]
[426899700,1782996640000,-151.5,0.00023764,2]
[426899704,1782996640000,-151.5,0.00023764,2]
[426899702,1782996640000,-500.0,0.00023764,2]
[426899708,1782996640000,-500.0,0.00023764,2]
[426899706,1782996640000,-500.0,0.00023764,2]
[426899715,1782996640000,-500.0,0.00023764,2]
[426899710,1782996640000,-500.0,0.00023764,2]
[426899714,1782996640000,-160.95897823,0.00023764,2]
[426899717,1782996640000,-500.0,0.00023764,2]
[426899712,1782996640000,-151.5,0.00023764,2]
[426899726,1782996640000,-1000.0,0.0002398,2]
[426899719,1782996640000,-500.0,0.00023764,2]
[426899765,1782996640000,-1000.0,0.00025,10]
[426899770,1782996640000,-3000.0,0.0002503,2]
[426899825,1782996640000,-151.0,0.000255,2]
[426899807,1782996640000,-179.191515,0.000255,2]
[426899808,1782996640000,-370.238151,0.000255,2]
[426899804,1782996640000,-179.191515,0.000255,2]
[426899811,1782996640000,-370.238151,0.000255,2]
[426899806,1782996640000,-179.191515,0.000255,2]
[426899809,1782996640000,-370.238151,0.000255,2]
[426899805,1782996640000,-179.191515,0.000255,2]
[426899812,1782996640000,-1919.26851,0.000255,2]
[426899815,1782996640000,-1919.26851,0.000255,2]
[426899817,1782996640000,-3782.600819,0.000255,2]
[426899814,1782996640000,-1919.26851,0.000255,2]
[426899816,1782996640000,-3782.600819,0.000255,2]
[426899823,1782996640000,-151.0,0.000255,2]
[426899824,1782996640000,-151.0,0.000255,2]
[426899821,1782996640000,-151.0,0.000255,2]
[426899818,1782996640000,-3782.600819,0.000255,2]
[426899820,1782996640000,-151.0,0.000255,2]
[426899819,1782996640000,-3782.600819,0.000255,2]
[426899822,1782996640000,-220.44402,0.000255,2]
[426899826,1782996640000,-151.0,0.000255,2]
[426899828,1782996640000,-1971.840095,0.0002572,5]
[426899829,1782996640000,-1000.0,0.0002574,5]
[426899830,1782996640000,-1000.0,0.0002576,5]
[426899831,1782996640000,-268.61813331,0.00025771,2]
[426899827,1782996640000,-267.93149807,0.0002558,2]
[426899769,1782996640000,-3000.0,0.0002502,2]
[426899832,1782996640000,-850.52826931,0.00025778,2]
[426899813,1782996640000,-1919.26851,0.000255,2]
[426899803,1782996640000,-151.0,0.000255,2]
[426899810,1782996640000,-370.238151,0.000255,2]
[426899798,1782996640000,-153.428724,0.000255,2]
[426899773,1782996640000,-3000.0,0.0002506,2]
[426899771,1782996640000,-3000.0,0.0002504,2]
[426899774,1782996640000,-3000.0,0.0002507,2]
[426899772,1782996640000,-3000.0,0.0002505,2]
[426899775,1782996640000,-169.12,0.0002507,2]
[426899779,1782996640000,-3000.0,0.0002511,2]
[426899782,1782996640000,-3000.0,0.0002514,2]
[426899789,1782996640000,-558.90697052,0.00025443,2]
[426899778,1782996640000,-3000.0,0.000251,2]
[426899800,1782996640000,-473.535436,0.000255,2]
[426899787,1782996640000,-396.66357975,0.00025379,2]
[426899786,1782996640000,-155.18671709,0.00025346,2]
[426899781,1782996640000,-3000.0,0.0002513,2]
[426899785,1782996640000,-248.171,0.00025172,2]
[426899788,1782996640000,-160.0,0.00025385,3]
[426899783,1782996640000,-3000.0,0.0002515,2]
[426899799,1782996640000,-473.535436,0.000255,2]
[426899797,1782996640000,-151.0,0.000255,2]
[426899780,1782996640000,-3000.0,0.0002512,2]
[426899796,1782996640000,-231.67052497,0.000255,2]
[426899795,1782996640000,-178.228914,0.000255,2]
[426899792,1782996640000,-151.0,0.000255,18]
[426899802,1782996640000,-473.535436,0.000255,2]
[426899793,1782996640000,-153.350284,0.000255,2]
[426899790,1782996640000,-800.13551429,0.00025479,2]
[426899801,1782996640000,-473.535436,0.000255,2]
[426899791,1782996640000,-261193.2191889,0.000255,2]
[426899784,1782996640000,-3897.555626,0.0002516,2]
[426899794,1782996640000,-151.0,0.000255,2]
[426899873,1782996641000,-1919.26851,0.00026,2]
[426899874,1782996641000,-1919.26851,0.00026,2]
[426899872,1782996641000,-370.238151,0.00026,2]
[426899875,1782996641000,-1919.26851,0.00026,2]
[426899871,1782996641000,-370.238151,0.00026,2]
[426899869,1782996641000,-370.238151,0.00026,2]
[426899876,1782996641000,-1919.26851,0.00026,2]
[426899868,1782996641000,-179.191515,0.00026,2]
[426899867,1782996641000,-179.191515,0.00026,2]
[426899865,1782996641000,-179.191515,0.00026,2]
[426899877,1782996641000,-3782.600819,0.00026,2]
[426899886,1782996641000,-715.058228,0.00026031,2]
[426899870,1782996641000,-370.238151,0.00026,2]
[426899881,1782996641000,-151.0,0.00026,2]
[426899895,1782996641000,-8669.73390194,0.00026444,2]
[426899882,1782996641000,-151.0,0.00026,2]
[426899878,1782996641000,-3782.600819,0.00026,2]
[426899879,1782996641000,-3782.600819,0.00026,2]
[426899883,1782996641000,-151.0,0.00026,2]
[426899880,1782996641000,-3782.600819,0.00026,2]
[426899884,1782996641000,-151.0,0.00026,2]
[426899887,1782996641000,-712.0954,0.000261,2]
[426899889,1782996641000,-417.15472785,0.00026147,2]
[426899890,1782996641000,-160.0,0.00026147,2]
[426899888,1782996641000,-160.0,0.00026147,2]
[426899891,1782996641000,-160.0,0.00026147,2]
[426899892,1782996641000,-237.0,0.00026295,2]
[426899866,1782996641000,-179.191515,0.00026,2]
[426899885,1782996641000,-223.801338,0.00026,2]
[426899859,1782996641000,-151.0,0.00026,2]
[426899833,1782996641000,-1000.0,0.0002578,5]
[426899861,1782996641000,-473.535436,0.00026,2]
[426899834,1782996641000,-326.66441351,0.000258,7]
[426899835,1782996641000,-151.0,0.000258,12]
[426899837,1782996641000,-1000.0,0.0002582,5]
[426899838,1782996641000,-1000.0,0.0002584,5]
[426899836,1782996641000,-1000.0,0.000258,5]
[426899840,1782996641000,-1000.0,0.0002588,5]
[426899851,1782996641000,-160.0,0.00026,7]
[426899850,1782996641000,-40447.0,0.00026,7]
[426899841,1782996641000,-1274.477071,0.0002588,5]
[426899842,1782996641000,-155.18671709,0.00025894,2]
[426899839,1782996641000,-1000.0,0.0002586,5]
[426899845,1782996641000,-1000.0,0.000259,5]
[426899843,1782996641000,-1000.0,0.00025896,2]
[426899857,1782996641000,-1000.0,0.00026,2]
[426899847,1782996641000,-1000.0,0.00025999,2]
[426899846,1782996641000,-552.79840657,0.00025977,2]
[426899844,1782996641000,-1000.0,0.000259,5]
[426899849,1782996641000,-50000.0,0.00026,2]
[426899852,1782996641000,-1000.0,0.00026,2]
[426899854,1782996641000,-1000.0,0.00026,2]
[426899853,1782996641000,-1000.0,0.00026,2]
[426899855,1782996641000,-1000.0,0.00026,2]
[426899862,1782996641000,-473.535436,0.00026,2]
[426899858,1782996641000,-1000.0,0.00026,10]
[426899856,1782996641000,-1000.0,0.00026,2]
[426899860,1782996641000,-473.535436,0.00026,2]
[426899863,1782996641000,-473.535436,0.00026,2]
[426899864,1782996641000,-151.0,0.00026,2]
[426899848,1782996641000,-1749.83275502,0.00026,2]
[426899896,1782996641000,-504.34648225,0.00026654,2]
[426899897,1782996641000,-160.0,0.00026695,4]
[426899899,1782996641000,-10000.0,0.000268,3]
[426899939,1782996641000,-160.0,0.00028057,14]
[426899930,1782996641000,-2091.115,0.000279,2]
[426899929,1782996641000,-211.5685,0.000279,3]
[426899931,1782996641000,-160.0,0.00028,10]
[426899933,1782996641000,-1475.99493479,0.00028,2]
[426899932,1782996641000,-1000.0,0.00028,20]
[426899934,1782996641000,-154.0,0.00028,2]
[426899935,1782996641000,-193.0,0.00028,2]
[426899936,1782996641000,-1169.0,0.00028,20]
[426899937,1782996641000,-160.0,0.00028004,5]
[426899942,1782996641000,-155.18671709,0.00028086,2]
[426899940,1782996641000,-316.595693,0.00028057,14]
[426899943,1782996641000,-222.264979,0.00028136,14]
[426899938,1782996641000,-613.97850582,0.00028053,2]
[426899950,1782996641000,-151.0,0.00028185,7]
[426899951,1782996641000,-179.191515,0.00028185,7]
[426899945,1782996641000,-228.649379,0.00028185,14]
[426899948,1782996641000,-473.535436,0.00028185,7]
[426899947,1782996641000,-473.535436,0.00028185,7]
[426899949,1782996641000,-473.535436,0.00028185,7]
[426899946,1782996641000,-473.535436,0.00028185,7]
[426899944,1782996641000,-290.575253,0.00028136,14]
[426899941,1782996641000,-473.191386,0.00028057,14]
[426899954,1782996641000,-179.191515,0.00028185,7]
[426899953,1782996641000,-179.191515,0.00028185,7]
[426899955,1782996641000,-370.238151,0.00028185,7]
[426899956,1782996641000,-370.238151,0.00028185,7]
[426899893,1782996641000,-210.059579,0.0002636,2]
[426899952,1782996641000,-179.191515,0.00028185,7]
[426899927,1782996641000,-446.0,0.0002787,2]
[426899957,1782996641000,-370.238151,0.00028185,7]
[426899926,1782996641000,-1846.0,0.0002787,2]
[426899928,1782996641000,-747.0,0.0002787,2]
[426899894,1782996641000,-155.18671709,0.00026442,2]
[426899898,1782996641000,-1472.15601468,0.00026799,5]
[426899901,1782996641000,-199.2170282,0.00026838,2]
[426899912,1782996641000,-2000.0,0.000272,2]
[426899911,1782996641000,-2027.98273904,0.000272,2]
[426899900,1782996641000,-160.0,0.000268,3]
[426899902,1782996641000,-214.358795,0.0002695,2]
[426899903,1782996641000,-155.18671709,0.0002699,2]
[426899904,1782996641000,-675.0,0.00027,10]
[426899905,1782996641000,-1000.0,0.00027,10]
[426899910,1782996641000,-160.0,0.000272,30]
[426899906,1782996641000,-1000.0,0.00027,2]
[426899909,1782996641000,-160.0,0.000272,30]
[426899907,1782996641000,-715.058228,0.00027127,2]
[426899913,1782996641000,-2000.0,0.000272,2]
[426899923,1782996641000,-419.71583329,0.0002751,2]
[426899921,1782996641000,-46500.5337114,0.000275,2]
[426899908,1782996641000,-238.23,0.00027149,2]
[426899918,1782996641000,-900.0,0.00027499,2]
[426899917,1782996641000,-180.36695928,0.00027397,7]
[426899920,1782996641000,-1000.0,0.000275,2]
[426899925,1782996641000,-2217.0,0.0002787,2]
[426899924,1782996641000,-155.18671709,0.00027538,2]
[426899919,1782996641000,-170.0,0.00027499,2]
[426899916,1782996641000,-260.09018538,0.00027397,30]
[426899915,1782996641000,-250.0,0.00027268,2]
[426899914,1782996641000,-705.17969733,0.00027252,2]
[426899922,1782996641000,-229.08,0.00027507,2]
[426899972,1782996642000,-3782.600819,0.00028347,7]
[426899958,1782996642000,-370.238151,0.00028185,7]
[426899959,1782996642000,-1919.26851,0.00028185,7]
[426899961,1782996642000,-1919.26851,0.00028185,7]
[426899960,1782996642000,-1919.26851,0.00028185,7]
[426899962,1782996642000,-1919.26851,0.00028185,7]
[426899973,1782996642000,-151.0,0.00028347,7]
[426899964,1782996642000,-151.0,0.00028185,7]
[426899967,1782996642000,-1000.0,0.00028321,2]
[426899963,1782996642000,-151.0,0.00028185,7]
[426899965,1782996642000,-801.70012839,0.000282,2]
[426899968,1782996642000,-600.0,0.00028321,2]
[426899966,1782996642000,-715.058228,0.00028223,2]
[426899971,1782996642000,-3782.600819,0.00028347,7]
[426899970,1782996642000,-3782.600819,0.00028347,7]
[426899974,1782996642000,-151.0,0.00028347,7]
[426899975,1782996642000,-151.0,0.00028349,7]
[426899976,1782996642000,-1013.62,0.000285,5]
[426899977,1782996642000,-389715.60356427,0.000285,30]
[426899969,1782996642000,-3782.600819,0.00028347,7]
[426900050,1782996647000,-24413.71845669,0.000285,30]
[426900053,1782996801000,39000.0,0.00029153,120]
[426900060,1782997330000,-217.77627566,0.00023747,7]
[426900061,1782997347000,-165.03232297,0.0002417,2]
[426900062,1782997354000,173.51169604,0.0001,2]
[426900750,1782997841000,-194.263126,0.00023576,2]
[426900752,1782997841000,-152.16336218,0.0002417,2]
[426900754,1782997841000,-165.03232297,0.00024222,2]
[426900755,1782997841000,-1000.0,0.00024499,2]
[426900757,1782997841000,-550.0,0.00024499,2]
[426900768,1782997841000,-500.0,0.00024597,2]
[426900763,1782997841000,-151.0,0.00024585,2]
[426900762,1782997841000,-165.58762676,0.00024585,2]
[426900765,1782997841000,-190.25165154,0.00024585,2]
[426900760,1782997841000,-160.0,0.000245,2]
[426900767,1782997841000,-500.0,0.00024597,2]
[426900769,1782997841000,-439.42011174,0.00024597,2]
[426900771,1782997841000,-546.42996971,0.00024599,2]
[426900773,1782997841000,-118408.88611293,0.000246,2]
[426900775,1782997841000,-1406.843553,0.000246,2]
[426900759,1782997841000,-310.0,0.000245,2]
[426901163,1782997844000,-1244.521348,0.000246,2]
[426901482,1782997847000,-1318.23593,0.000246,2]
[426901477,1782997847000,-37.33798545,0.000246,2]
[426901797,1782998029000,831.063694,0.0002868,120]
[426901798,1782998082000,1577.32308217,0.00013,2]
[426901824,1782998956000,10000.0,0.000195,30]
[426901826,1782998961000,-192.96798865,0.00020752,2]
[426901825,1782998961000,-151.0,0.0002013,2]
[426901827,1782998962000,10000.0,0.000195,30]
[426901828,1782998971000,10000.0,0.000195,30]
[426901829,1782998982000,3553.8,0.000195,30]
[426901830,1782999003000,10000.0,0.000195,30]
[426901831,1782999009000,10000.0,0.000195,30]
[426901832,1782999015000,10000.0,0.000195,30]
[426901833,1782999026000,3992.6,0.000195,30]
[426901949,1782999039000,-74.96350942,0.00020752,2]
[426901951,1782999039000,-231.97664227,0.00022849,2]
[426901955,1782999039000,-500.0,0.00022849,2]
[426901957,1782999039000,-23.31325688,0.00022849,2]
[426901962,1782999039000,-111.21072211,0.00022849,2]
[426901960,1782999039000,-476.68674312,0.00022849,2]
[426901953,1782999039000,-159.93556797,0.00022849,2]
[426902232,1782999041000,-166.71030769,0.0002295,2]
[426902226,1782999041000,-153.05992852,0.0002295,2]
[426902253,1782999041000,-176.29352738,0.0002295,2]
[426902249,1782999041000,-1613.23269662,0.0002295,2]
[426902243,1782999041000,-159.31186973,0.0002295,2]
[426902261,1782999041000,-189.27036216,0.0002295,2]
[426902251,1782999041000,-186.73567723,0.0002295,2]
[426902255,1782999041000,-1482.1406478,0.0002295,2]
[426902259,1782999041000,-388.52638385,0.0002295,2]
[426902247,1782999041000,-188.03253408,0.0002295,2]
[426902263,1782999041000,-166.851416,0.0002295,2]
[426902245,1782999041000,-187.41581435,0.0002295,2]
[426902257,1782999041000,-184.63397016,0.0002295,2]
[426902267,1782999041000,-152.79690703,0.0002295,2]
[426902269,1782999041000,-201.99062801,0.0002295,2]
[426902284,1782999041000,-169.33750362,0.0002295,2]
[426902230,1782999041000,-164.12619811,0.0002295,2]
[426902222,1782999041000,-500.0,0.00022948,2]
[426902239,1782999041000,-887.96807395,0.0002295,2]
[426902234,1782999041000,-157.2801065,0.0002295,2]
[426902202,1782999041000,-10005.63655625,0.0002285,2]
[426902201,1782999041000,-455.47325047,0.00022849,2]
[426902204,1782999041000,-500.0,0.00022948,2]
[426902206,1782999041000,-500.0,0.00022948,2]
[426902208,1782999041000,-382.5009788,0.00022948,2]
[426902210,1782999041000,-500.0,0.00022948,2]
[426902211,1782999041000,-500.0,0.00022948,2]
[426902215,1782999041000,-500.0,0.00022948,2]
[426902213,1782999041000,-500.0,0.00022948,2]
[426902217,1782999041000,-500.0,0.00022948,2]
[426902237,1782999041000,-182.87381813,0.0002295,2]
[426902241,1782999041000,-162.28237755,0.0002295,2]
[426902228,1782999041000,-160.82900524,0.0002295,2]
[426902221,1782999041000,-500.0,0.00022948,2]
[426902236,1782999041000,-175.25911346,0.0002295,2]
[426902219,1782999041000,-500.0,0.00022948,2]
[426902224,1782999041000,-948.96889334,0.0002295,2]
[426902290,1782999041000,-176.30168461,0.0002295,2]
[426902275,1782999041000,-150.84126553,0.0002295,2]
[426902265,1782999041000,-151.81456514,0.0002295,2]
[426902271,1782999041000,-367.74663788,0.0002295,2]
[426902331,1782999041000,-174.3923883,0.0002295,2]
[426902337,1782999041000,-655.366216,0.0002295,2]
[426902335,1782999041000,-161.78698038,0.0002295,2]
[426902333,1782999041000,-159.62992733,0.0002295,2]
[426902322,1782999041000,-195.93880504,0.0002295,2]
[426902341,1782999041000,-150.87641357,0.0002295,2]
[426902323,1782999041000,-153.56758319,0.0002295,2]
[426902325,1782999041000,-255.75733945,0.0002295,2]
[426902343,1782999041000,-151.99888694,0.0002295,2]
[426902327,1782999041000,-172.72727273,0.0002295,2]
[426902339,1782999041000,-195.18659322,0.0002295,2]
[426902345,1782999041000,-151.99199448,0.0002295,2]
[426902347,1782999041000,-160.90522525,0.0002295,2]
[426902355,1782999041000,-337.63256693,0.0002295,2]
[426902292,1782999041000,-173.58620845,0.0002295,2]
[426902349,1782999041000,-182.70921267,0.0002295,2]
[426902351,1782999041000,-1818.18181818,0.0002295,2]
[426902329,1782999041000,-176.17310878,0.0002295,2]
[426902320,1782999041000,-202.95184824,0.0002295,2]
[426902353,1782999041000,-198.00358479,0.0002295,2]
[426902302,1782999041000,-199.13943645,0.0002295,2]
[426902273,1782999041000,-159.43992629,0.0002295,2]
[426902277,1782999041000,-193.9388746,0.0002295,2]
[426902288,1782999041000,-180.18423925,0.0002295,2]
[426902279,1782999041000,-164.78424266,0.0002295,2]
[426902281,1782999041000,-378.71578822,0.0002295,2]
[426902318,1782999041000,-172.10546982,0.0002295,2]
[426902286,1782999041000,-186.26271523,0.0002295,2]
[426902300,1782999041000,-182.276499,0.0002295,2]
[426902294,1782999041000,-156.84493868,0.0002295,2]
[426902283,1782999041000,-997.43692746,0.0002295,2]
[426902298,1782999041000,-162.9977827,0.0002295,2]
[426902306,1782999041000,-386.70476904,0.0002295,2]
[426902304,1782999041000,-173.77233178,0.0002295,2]
[426902308,1782999041000,-153.81917745,0.0002295,2]
[426902310,1782999041000,-168.38891017,0.0002295,2]
[426902312,1782999041000,-1191.65708891,0.0002295,2]
[426902316,1782999041000,-157.20963922,0.0002295,2]
[426902314,1782999041000,-276.19923677,0.0002295,2]
[426902296,1782999041000,-356.73969638,0.0002295,2]
[426902357,1782999042000,-373.85365085,0.0002295,2]
[426902695,1782999047000,-1728.87,0.0002295,2]
[426902696,1782999048000,-1302.91584852,0.0002295,2]
[426902697,1782999048000,-436.39607085,0.0002295,2]
[426902698,1782999048000,-1243.89943363,0.00023166,2]
[426902699,1782999048000,-6916.04362407,0.00023166,2]
[426902700,1782999048000,-194.263126,0.00023549,2]
[426902701,1782999048000,-212.66639772,0.00023934,2]
[426902702,1782999048000,-759.17511467,0.00023934,2]
[426902704,1782999048000,-324.56475511,0.00023934,2]
[426902708,1782999048000,-20.32976819,0.00023934,2]
[426902706,1782999048000,-328.25239622,0.00023934,2]
[426902707,1782999048000,-321.65801048,0.00023934,2]
[426902703,1782999048000,-169.09163414,0.00023934,2]
[426902705,1782999048000,-194.4800692,0.00023934,2]
[426902710,1782999129000,-444.64024247,0.00022593,14]
[426902712,1782999146000,-500.0,0.00022948,2]
[426902713,1782999163000,-202.96132428,0.00021948,2]
[426902724,1782999547000,190.77273066,0.00029121,120]
[426902725,1782999615000,-152.43572672,0.00018784,14]
[426902728,1782999648000,168.73512691,0.00029134,120]
[426902731,1782999872000,-85.88967572,0.00019533,2]
[426902730,1782999872000,-202.96132428,0.00018533,2]
[426902733,1782999901000,-210.66332835,0.00019533,2]
[426902732,1782999901000,-117.07164856,0.00019533,2]
[426902739,1783000055000,1418.72216068,0.0001,2]
[426902738,1783000055000,2.38002309,0.0001,2]
[426902740,1783000067000,-268.61813331,0.00019852,2]
[426902742,1783000067000,-603.78640914,0.00019866,2]
[426902743,1783000067000,-225.79624144,0.00020533,7]
[426902744,1783000067000,-1341.4302046,0.00020806,2]
[426902741,1783000067000,-419.71583329,0.00019852,2]
[426902747,1783000067000,-1101.84327708,0.00020897,2]
[426902748,1783000067000,-1585.06766468,0.00020897,2]
[426902746,1783000067000,-705.17969733,0.00020897,2]
[426902749,1783000067000,-396.66357975,0.00020897,2]
[426902754,1783000067000,-178.614463,0.00021688,2]
[426902751,1783000067000,-300.0,0.00021423,2]
[426902745,1783000067000,-398.49966664,0.00020897,2]
[426902750,1783000067000,-208.737727,0.00021152,2]
[426902753,1783000067000,-4001.9287731,0.00021424,2]
[426902752,1783000067000,-4333.84376931,0.00021424,2]
[426902758,1783000068000,-447.79007513,0.00021997,2]
[426902756,1783000068000,-338.6943622,0.0002174,7]
[426902757,1783000068000,-311.27660655,0.00021997,2]
[426902755,1783000068000,-174.07599695,0.00021739,2]
[426902759,1783000084000,697.7,0.000195,30]
[426902760,1783000107000,1782.7375195,0.00017,2]
[426902774,1783000144000,-380.61307665,0.00018,2]
[426902773,1783000144000,-54.5141933,0.00017,2]
[426902776,1783000147000,-805.58608426,0.00019,2]
[426902775,1783000147000,-54.5141933,0.00018,2]
[426902784,1783000151000,-769.023047,0.00019,2]
[426902785,1783000168000,-513.72737667,0.00022743,2]
[426902831,1783000203000,-1189.0,0.00022743,2]
[426902857,1783000232000,-3404.45776657,0.00022743,2]
[426902856,1783000232000,-417.67435846,0.00022743,2]
[426902859,1783000232000,-293.59,0.0002279,3]
[426902860,1783000232000,-880.78,0.0002279,3]
[426902858,1783000232000,-3988.86787497,0.00022743,2]
[426902861,1783000232000,-22417.30452885,0.000228,2]
[426902897,1783000238000,-1582.83914,0.000228,2]
[426902895,1783000238000,-152152.42659052,0.000228,2]
[426902902,1783000238000,-2627.02592624,0.000228,2]
[426903116,1783000243000,-6095.87471478,0.000228,2]
[426903118,1783000243000,-267.77939956,0.000228,2]
[426903117,1783000243000,-841.52588397,0.000228,2]
[426903119,1783000243000,-1242.048599,0.000228,2]
[426903120,1783000243000,-11185.8070735,0.000228,2]
[426903123,1783000244000,-652.25,0.000228,2]
[426903122,1783000244000,-617.46398293,0.000228,2]
[426903144,1783000247000,-6465.8212936,0.000228,2]
[426903143,1783000247000,-111.71678447,0.000228,2]
[426903145,1783000251000,152.43572672,0.00022436,14]
[426903146,1783000301000,151.0,0.00022158,2]
[426903147,1783000311000,1078.08952254,0.00022094,2]
[426903207,1783000823000,164.53047331,0.000287,120]